bitfinex/quotes_SOLUSD_20220119
["timestamp","ask_amount","ask_price","bid_price","bid_amount"]
[1642598041015,0.25,136.83,136.78,0.25]
[1642598041810,0.25,136.83,136.78,11.2154]
[1642598042015,11.7669,136.86,136.78,11.2154]
[1642598047220,11.7669,136.86,136.78,0.25]
[1642598048442,11.7669,136.86,136.78,11.2156]
[1642598053352,11.2154,136.86,136.78,11.2156]
[1642598058955,11.2154,136.86,136.79,6.0]
[1642598060458,10.9654,136.86,136.8,0.25]
[1642598060659,2.06770371,136.88,136.8,0.25]
[1642598060860,2.06770371,136.89,136.8,10.78]
[1642598061061,2.06770371,136.9,136.81,24.23134925]
[1642598061261,2.06770371,136.9,136.82,0.25]
[1642598061459,2.06770371,136.91,136.82,79.61]
[1642598061662,2.06770371,136.91,136.83,23.3587]
[1642598061860,51.60217253,136.92,136.83,23.3587]
[1642598062059,51.60217253,136.92,136.84,0.25]
[1642598062460,10.9616,136.91,136.84,11.2105]
[1642598063966,0.25,136.9,136.84,11.2105]
[1642598064366,0.25,136.9,136.84,10.9605]
[1642598065169,0.25,136.9,136.85,0.25]
[1642598065369,0.25,136.9,136.85,6.25]
[1642598065569,0.25,136.91,136.85,6.25]
[1642598065768,0.25,136.91,136.85,6.0]
[1642598066168,0.8015,136.91,136.84,6.0]
[1642598066370,11.7624,136.91,136.84,6.0]
[1642598066772,0.8015,136.91,136.85,0.25]
[1642598066998,0.25,136.91,136.85,0.25]
[1642598069276,0.25,136.91,136.85,11.21]
[1642598072673,11.2112,136.91,136.85,0.25]
[1642598072875,10.9612,136.91,136.85,0.25]
[1642598073077,0.25,136.9,136.85,0.25]
[1642598073979,34.7521,136.93,136.85,0.25]
[1642598074178,2.06770371,136.94,136.85,112.31304925]
[1642598074381,2.61920371,136.95,136.85,112.31304925]
[1642598074607,34.84876876,136.96,136.86,6.0]
[1642598074806,32.78106505,136.96,136.87,3.17]
[1642598075007,37.58622554,136.95,136.87,26.7802]
[1642598076408,37.58622554,136.95,136.88,10.9559]
[1642598076609,37.58622554,136.95,136.89,6.0]
[1642598076810,37.58622554,136.95,136.9,0.25]
[1642598077908,2.06770371,136.98,136.9,84.3156]
[1642598078109,2.06770371,136.98,136.91,6.0]
[1642598078309,0.25,136.97,136.91,6.25]
[1642598078709,0.25,136.97,136.91,0.25]
[1642598078909,0.25,136.97,136.91,11.2048]
[1642598079108,13.57340371,136.99,136.91,11.2048]
[1642598079310,27.68853522,137.0,136.92,73.36]
[1642598079508,27.68853522,137.0,136.92,96.577]
[1642598079509,1.35023151,137.0,136.92,96.577]
[1642598079712,1.35023151,137.0,136.93,79.61]
[1642598079909,2.06770371,137.02,136.93,79.61]
[1642598080109,41.96423201,137.01,136.93,82.53]
[1642598080510,41.96423201,137.01,136.94,10.9523]
[1642598080711,41.96423201,137.01,136.95,0.25]
[1642598081914,41.96423201,137.01,136.94,0.25]
[1642598082513,41.96423201,137.01,136.95,10.9523]
[1642598082814,41.96423201,137.01,136.96,0.25]
[1642598083213,41.96423201,137.01,136.95,10.9523]
[1642598083416,52.91713201,137.01,136.94,22.6663]
[1642598083616,0.25,137.0,136.94,22.6663]
[1642598083814,0.8005,137.0,136.93,10.9531]
[1642598084015,0.8005,137.0,136.94,0.25]
[1642598084513,11.7547,137.0,136.94,0.25]
[1642598085113,11.7547,137.0,136.92,0.25]
[1642598085314,11.7547,137.0,136.91,25.9195]
[1642598085914,13.82240371,137.0,136.91,25.9195]
[1642598086113,13.82240371,137.0,136.91,22.9995]
[1642598087114,13.82240371,137.0,136.9,10.9562]
[1642598087315,2.86820371,137.0,136.91,6.25]
[1642598087516,2.06770371,137.0,136.92,6.0]
[1642598087716,44.03193572,137.01,136.93,76.53]
[1642598087914,41.96423201,137.01,136.93,76.53]
[1642598088116,41.96423201,137.01,136.94,6.0]
[1642598088316,41.96423201,137.01,136.95,11.2019]
[1642598089318,2.06770371,137.03,136.95,11.2019]
[1642598089520,6.19094737,137.09,137.0,36.9463]
[1642598089719,6.19094737,137.09,137.01,10.78]
[1642598089921,10.30212623,137.15,137.06,1.956]
[1642598090121,4.11117886,137.15,137.07,16.53]
[1642598090319,40.59713234,137.17,137.07,16.78]
[1642598090718,0.36621246,137.19,137.08,10.9401]
[1642598091119,0.36621246,137.19,137.09,0.25]
[1642598091318,0.36621246,137.19,137.08,6.0]
[1642598091519,0.36621246,137.19,137.07,33.539]
[1642598091818,73.36,137.18,137.09,10.9417]
[1642598092020,73.36,137.18,137.06,1.956]
[1642598092021,0.5514,137.17,137.06,1.956]
[1642598092218,24.7132,137.17,137.06,1.956]
[1642598092418,35.78109461,137.16,137.06,1.956]
[1642598092623,35.78109461,137.16,137.06,15.402]
[1642598092818,0.5516,137.15,137.07,10.943]
[1642598093822,0.8016,137.15,137.07,10.943]
[1642598094021,0.8016,137.15,137.08,11.1923]
[1642598094223,0.5516,137.15,137.09,10.78]
[1642598094425,0.5516,137.18,137.09,10.78]
[1642598094622,0.36621246,137.19,137.09,10.78]
[1642598095225,37.70570998,137.19,137.09,10.78]
[1642598095523,48.64650998,137.19,137.1,10.9403]
[1642598095822,0.8017,137.18,137.1,10.9403]
[1642598096123,0.8017,137.18,137.09,10.53]
[1642598096523,11.7431,137.18,137.09,10.53]
[1642598096723,11.7431,137.18,137.05,10.53]
[1642598096923,49.07065524,137.16,137.05,16.53]
[1642598097134,0.5517,137.15,137.05,16.53]
[1642598097333,0.8017,137.15,137.05,16.53]
[1642598097535,34.84401919,137.13,137.05,10.53]
[1642598097737,0.8017,137.12,137.05,10.53]
[1642598098637,10.9468,137.11,137.05,10.53]
[1642598098837,0.5515,137.1,137.05,10.53]
[1642598099041,45.12701219,137.09,137.05,10.53]
[1642598099242,0.25,137.08,137.05,10.53]
[1642598099452,3.03219997,137.07,137.05,10.53]
[1642598099640,46.97807862,137.06,137.05,10.53]
[1642598100051,46.97807862,137.06,137.05,6.0]
[1642598100250,46.97807862,137.06,137.02,10.9473]
[1642598100447,46.97807862,137.06,137.03,0.25]
[1642598101276,0.25,137.08,137.03,0.25]
[1642598101277,0.25,137.08,137.03,11.1962]
[1642598101476,0.8016,137.14,137.03,11.1962]
[1642598101674,0.552,137.16,137.03,23.06659882]
[1642598101874,0.5525,137.18,137.04,6.0]
[1642598102076,0.5525,137.18,137.05,10.53]
[1642598102274,43.47589513,137.14,137.05,10.78]
[1642598102475,43.47589513,137.14,137.07,10.9428]
[1642598102673,43.47589513,137.14,137.08,0.25]
[1642598103076,0.25,137.13,137.08,0.25]
[1642598103675,0.25,137.13,137.08,11.1922]
[1642598104276,0.8025,137.18,137.08,11.1922]
[1642598104505,0.5525,137.18,137.08,11.1922]
[1642598104676,0.8025,137.18,137.08,11.1922]
[1642598105077,34.85982364,137.17,137.08,11.1922]
[1642598105277,34.60982364,137.17,137.08,11.1922]
[1642598107080,34.60982364,137.17,137.09,6.0]
[1642598107281,34.60982364,137.17,137.1,11.1904]
[1642598108185,0.25,137.16,137.1,11.1904]
[1642598109084,34.60982364,137.17,137.1,11.1904]
[1642598109484,0.36621246,137.19,137.1,11.1904]
[1642598109685,0.36621246,137.19,137.1,21.7204]
[1642598110490,0.36621246,137.19,137.13,84.296]
[1642598110689,0.36621246,137.19,137.14,0.25]
[1642598110887,0.36621246,137.19,137.15,10.53]
[1642598111290,0.36621246,137.19,137.16,0.25]
[1642598112287,0.36621246,137.19,137.15,10.53]
[1642598115891,0.36621246,137.19,137.11,10.53]
[1642598116089,0.5516,137.18,137.1,2.916]
[1642598116290,0.36621246,137.19,137.11,10.53]
[1642598116691,41.75223156,137.19,137.12,73.36]
[1642598116891,41.75223156,137.19,137.13,10.53]
[1642598117093,0.25,137.18,137.1,10.53]
[1642598118195,0.5475,137.17,137.1,21.4708]
[1642598118891,0.5475,137.17,137.1,10.53]
[1642598119093,45.25772742,137.16,137.1,10.53]
[1642598119393,0.25,137.15,137.1,10.53]
[1642598120197,45.25772742,137.16,137.1,10.53]
[1642598120598,0.36621246,137.19,137.1,10.53]
[1642598121206,0.36621246,137.19,137.1,11.87039882]
[1642598121404,0.36621246,137.19,137.11,0.25]
[1642598121606,40.38253896,137.19,137.13,10.9381]
[1642598122603,40.38253896,137.19,137.12,10.9391]
[1642598122804,40.38253896,137.19,137.13,0.25]
[1642598124005,40.38253896,137.19,137.11,0.25]
[1642598124302,40.38253896,137.19,137.11,10.78]
[1642598124502,40.38253896,137.19,137.13,10.938]
[1642598124903,40.38253896,137.19,137.11,10.78]
[1642598126308,51.32253896,137.19,137.11,10.78]
[1642598127625,40.38253896,137.19,137.11,21.72]
[1642598128726,51.32223896,137.19,137.11,21.72]
[1642598128926,0.25,137.18,137.11,21.47]
[1642598129128,0.8016,137.18,137.11,21.47]
[1642598129427,0.5516,137.18,137.11,21.47]
[1642598129628,0.8016,137.18,137.11,21.47]
[1642598130431,11.7422,137.18,137.11,21.47]
[1642598131332,11.7422,137.18,137.11,94.83]
[1642598131532,0.25,137.18,137.11,94.83]
[1642598133336,40.38253896,137.19,137.12,0.25]
[1642598133536,40.38253896,137.19,137.13,10.9379]
[1642598133739,40.38253896,137.19,137.14,0.25]
[1642598135037,40.38253896,137.19,137.13,10.53]
[1642598135236,0.25,137.18,137.13,10.53]
[1642598135438,40.38253896,137.19,137.14,0.25]
[1642598136037,40.38253896,137.19,137.13,10.53]
[1642598137240,40.38253896,137.19,137.13,21.4681]
[1642598138841,40.38253896,137.19,137.14,0.25]
[1642598141549,40.38253896,137.19,137.13,21.4681]
[1642598141748,0.25,137.18,137.13,10.53]
[1642598141944,0.5516,137.17,137.1,24.8305]
[1642598142346,2.3254939,137.17,137.1,24.8305]
[1642598142548,48.5039519,137.16,137.08,33.6741]
[1642598142748,59.4456519,137.16,137.09,10.9415]
[1642598142951,59.4456519,137.16,137.09,11.1915]
[1642598143148,59.4456519,137.16,137.09,0.25]
[1642598143448,59.4456519,137.16,137.08,23.1441]
[1642598143648,0.8017,137.15,137.07,23.8349]
[1642598143850,0.8017,137.15,137.08,6.0]
[1642598144051,10.9426,137.14,137.08,6.0]
[1642598144249,49.0556519,137.16,137.08,6.0]
[1642598144448,48.5039519,137.16,137.08,6.0]
[1642598144648,48.5039519,137.16,137.09,10.53]
[1642598144849,49.7976,137.2,137.09,10.53]
[1642598145050,49.246,137.2,137.1,6.25]
[1642598145251,49.246,137.2,137.11,73.36]
[1642598145451,60.1838,137.2,137.11,84.2985]
[1642598145652,60.1838,137.2,137.12,0.25]
[1642598145850,45.80779688,137.19,137.12,0.25]
[1642598146451,56.74649688,137.19,137.12,0.25]
[1642598146654,57.29799688,137.19,137.1,6.0]
[1642598147254,0.25,137.18,137.11,0.25]
[1642598147552,0.91771246,137.19,137.11,15.59816123]
[1642598147753,0.36621246,137.19,137.12,73.36]
[1642598148055,0.36621246,137.19,137.12,79.36]
[1642598148253,0.36621246,137.19,137.13,0.25]
[1642598148755,0.36621246,137.19,137.14,10.9358]
[1642598149153,0.36621246,137.19,137.15,0.25]
[1642598149553,0.36621246,137.19,137.15,73.61]
[1642598149753,0.36621246,137.19,137.15,84.546]
[1642598150153,0.36621246,137.19,137.15,0.25]
[1642598150855,0.36621246,137.19,137.15,73.36]
[1642598151958,0.36621246,137.19,137.15,84.2966]
[1642598152359,0.36621246,137.19,137.15,73.36]
[1642598153155,0.36621246,137.19,137.13,1.33704624]
[1642598153357,0.36621246,137.19,137.13,10.9382]
[1642598153757,47.43009333,137.19,137.13,10.9382]
[1642598154157,58.36859333,137.19,137.1,2.916]
[1642598154356,58.36859333,137.19,137.11,10.9397]
[1642598154357,0.5516,137.18,137.11,10.9397]
[1642598154757,47.43009333,137.19,137.11,10.9397]
[1642598154958,0.25,137.18,137.1,6.0]
[1642598155157,43.6644567,137.16,137.1,6.0]
[1642598155359,43.6644567,137.16,137.1,16.9404]
[1642598157959,43.6644567,137.16,137.11,0.25]
[1642598158160,43.6644567,137.16,137.11,11.189]
[1642598158360,10.9394,137.18,137.11,11.189]
[1642598158559,34.92481246,137.19,137.11,11.189]
[1642598159260,44.98922944,137.18,137.11,11.189]
[1642598160963,44.98922944,137.18,137.11,84.549]
[1642598162769,0.36621246,137.19,137.11,85.88604624]
[1642598162966,0.36621246,137.19,137.12,6.0]
[1642598163167,0.36621246,137.19,137.14,10.9357]
[1642598164573,0.36621246,137.19,137.15,0.25]
[1642598165675,0.36621246,137.19,137.13,33.8391]
[1642598166074,0.61621246,137.19,137.12,2.916]
[1642598166275,0.5516,137.18,137.1,10.53]
[1642598166475,41.39620968,137.17,137.11,6.0]
[1642598166875,52.33630968,137.17,137.11,6.0]
[1642598169817,25.36551246,137.19,137.12,0.25]
[1642598170804,40.97635646,137.18,137.13,10.9377]
[1642598171105,40.97635646,137.18,137.12,0.25]
[1642598172508,40.97635646,137.18,137.12,11.1887]
[1642598173004,0.36621246,137.19,137.12,84.5487]
[1642598173204,0.36621246,137.19,137.12,87.4647]
[1642598174206,0.36621246,137.19,137.12,84.5487]
[1642598175310,0.36621246,137.19,137.12,11.1887]
[1642598176110,0.61621246,137.19,137.11,8.916]
[1642598176312,1.16781246,137.19,137.11,8.916]
[1642598176710,12.10651246,137.19,137.11,8.916]
[1642598178512,12.10651246,137.19,137.11,6.0]
[1642598178814,12.10651246,137.19,137.1,6.0]
[1642598179614,8.26014586,137.18,137.08,34.3731]
[1642598179815,10.9421,137.16,137.05,13.446]
[1642598180014,25.2137,137.15,137.06,6.0]
[1642598180219,42.7135051,137.14,137.06,16.78]
[1642598180416,42.7135051,137.14,137.06,10.78]
[1642598180620,42.7135051,137.14,137.07,6.0]
[1642598181219,42.7135051,137.14,137.08,0.25]
[1642598181418,53.6564051,137.14,137.08,0.25]
[1642598182219,42.7135051,137.14,137.08,0.25]
[1642598182616,42.7135051,137.14,137.08,11.1918]
[1642598183221,42.7135051,137.14,137.08,0.25]
[1642598183618,42.7135051,137.14,137.07,0.25]
[1642598184521,42.7135051,137.14,137.07,11.1926]
[1642598184522,53.6561051,137.14,137.07,11.1926]
[1642598184721,0.25,137.13,137.07,10.9426]
[1642598184921,0.8016,137.13,137.06,33.2951]
[1642598185520,11.7454,137.13,137.06,10.53]
[1642598185923,11.7454,137.13,137.02,69.94088476]
[1642598186119,22.9435,137.12,137.02,69.94088476]
[1642598186321,0.25,137.11,137.02,13.446]
[1642598186522,0.8016,137.11,137.02,2.916]
[1642598186723,10.946,137.1,137.02,2.916]
[1642598187223,40.32149048,137.09,137.02,2.916]
[1642598187428,40.32149048,137.09,137.01,125.1473]
[1642598187825,40.32149048,137.09,137.02,0.25]
[1642598188226,0.5515,137.16,137.03,77.61575779]
[1642598188427,29.55112229,137.17,137.05,73.36]
[1642598188626,25.42104936,137.17,137.07,73.36]
[1642598188930,25.42104936,137.17,137.08,13.696]
[1642598189127,25.42104936,137.17,137.1,73.36]
[1642598189326,25.42104936,137.17,137.12,10.938]
[1642598189530,25.42104936,137.17,137.12,12.34525234]
[1642598189728,45.81171246,137.19,137.12,10.938]
[1642598190228,0.25,137.18,137.12,10.938]
[1642598190843,45.81171246,137.19,137.12,10.938]
[1642598192246,0.25,137.18,137.12,10.938]
[1642598194044,45.81171246,137.19,137.12,10.938]
[1642598194245,45.81171246,137.19,137.14,10.9374]
[1642598194444,23.08781246,137.19,137.14,10.9374]
[1642598195058,0.36621246,137.19,137.14,10.9374]
[1642598195259,0.36621246,137.19,137.16,10.9347]
[1642598195663,0.36621246,137.19,137.17,0.25]
[1642598196260,6.4306124,137.19,137.17,0.25]
[1642598196460,3.39841243,137.19,137.17,0.25]
[1642598196863,0.36621246,137.19,137.16,0.25]
[1642598197460,0.36621246,137.19,137.18,10.9336]
[1642598198363,6.4306124,137.19,137.16,0.25]
[1642598198561,3.39841243,137.19,137.16,0.25]
[1642598198760,0.36621246,137.19,137.16,0.25]
[1642598198962,0.36621246,137.19,137.16,11.1853]
[1642598200162,0.36621246,137.19,137.16,10.9353]
[1642598200365,0.36621246,137.19,137.13,10.53]
[1642598201565,0.36621246,137.19,137.13,21.4683]
[1642598203472,0.36621246,137.19,137.14,0.25]
[1642598203670,0.36621246,137.19,137.13,21.4683]
[1642598204770,0.36621246,137.19,137.14,0.25]
[1642598204971,0.36621246,137.19,137.13,21.4683]
[1642598205172,0.91771246,137.19,137.13,21.4683]
[1642598205774,11.85651246,137.19,137.13,10.53]
[1642598205976,11.30501246,137.19,137.13,10.53]
[1642598206573,11.30501246,137.19,137.12,10.9391]
[1642598206776,11.30501246,137.19,137.13,0.25]
[1642598209678,0.25,137.18,137.1,24.3861]
[1642598209880,10.9414,137.16,137.1,10.9401]
[1642598210580,40.16411645,137.15,137.09,11.56732054]
[1642598210979,40.16411645,137.15,137.1,0.25]
[1642598211483,40.16411645,137.15,137.09,22.50822054]
[1642598211878,51.10621645,137.15,137.09,22.50822054]
[1642598212080,0.552,137.14,137.07,25.8453]
[1642598212277,0.552,137.14,137.07,2.916]
[1642598212480,0.552,137.14,137.08,10.9423]
[1642598212680,0.552,137.14,137.06,22.09732054]
[1642598212880,11.7448,137.14,137.06,11.56732054]
[1642598214583,11.7448,137.14,137.04,33.145]
[1642598214784,36.581,137.14,137.06,6.0]
[1642598214983,36.581,137.14,137.05,6.0]
[1642598215583,36.581,137.14,137.05,16.9446]
[1642598215783,36.581,137.14,137.06,0.25]
[1642598216984,36.581,137.14,137.06,11.194]
[1642598217384,36.029,137.14,137.06,11.194]
[1642598218884,36.029,137.14,137.04,21.4748]
[1642598219084,0.5516,137.13,137.04,10.9448]
[1642598219288,10.9453,137.11,137.04,10.9448]
[1642598219684,45.89857515,137.1,137.04,10.9448]
[1642598221090,0.5516,137.13,137.04,10.9448]
[1642598221287,0.5516,137.14,137.05,1.58775779]
[1642598221488,1.67908169,137.15,137.07,10.9413]
[1642598221688,0.25,137.14,137.07,10.9413]
[1642598222090,46.24555076,137.14,137.07,10.9413]
[1642598222890,1.67908169,137.15,137.07,10.9413]
[1642598223090,2.05662951,137.16,137.1,10.939]
[1642598223288,22.7188,137.17,137.11,0.25]
[1642598223490,22.7188,137.17,137.08,13.696]
[1642598223688,22.7188,137.17,137.09,6.0]
[1642598223887,47.01031954,137.16,137.09,6.0]
[1642598224088,47.01031954,137.16,137.12,10.9385]
[1642598228197,83.76589254,137.16,137.12,10.9385]
[1642598228722,36.755573,137.16,137.12,10.9385]
[1642598230523,36.755573,137.16,137.11,10.9399]
[1642598234528,36.755573,137.16,137.12,0.25]
[1642598234731,36.755573,137.16,137.13,10.9373]
[1642598235132,36.755573,137.16,137.14,0.25]
[1642598236133,36.755573,137.16,137.12,0.25]
[1642598236533,36.755573,137.16,137.14,10.9373]
[1642598236734,42.81997294,137.16,137.14,10.9373]
[1642598237533,36.755573,137.16,137.14,10.9373]
[1642598237833,36.755573,137.16,137.15,11.1863]
[1642598238836,42.81997294,137.16,137.15,11.1863]
[1642598239438,36.755573,137.16,137.15,11.1863]
[1642598239639,36.755573,137.16,137.15,17.1863]
[1642598242050,36.755573,137.16,137.15,90.5463]
[1642598242249,36.755573,137.16,137.15,101.0763]
[1642598242950,36.755573,137.16,137.15,107.1524955]
[1642598243149,36.755573,137.16,137.15,110.0684955]
[1642598243349,0.36621246,137.19,137.15,111.40625329]
[1642598243552,0.36621246,137.19,137.16,6.0]
[1642598243751,0.36621246,137.19,137.17,97.9858]
[1642598243951,0.18362657,137.22,137.17,99.32355779]
[1642598244250,0.18362657,137.22,137.18,1.33775779]
[1642598244450,0.18362657,137.22,137.19,2.915]
[1642598244650,0.18362657,137.22,137.19,3.165]
[1642598245452,0.18362657,137.22,137.19,14.0957]
[1642598247976,0.18362657,137.22,137.19,16.03540364]
[1642598248377,0.18362657,137.22,137.19,14.0957]
[1642598257898,0.18362657,137.22,137.2,6.0]
[1642598258094,0.18362657,137.22,137.21,10.9301]
[1642598258324,0.18362657,137.22,137.21,11.1801]
[1642598258696,0.18362657,137.22,137.21,17.1801]
[1642598261501,0.18362657,137.22,137.21,101.0701]
[1642598261702,0.18362657,137.22,137.21,102.40785779]
[1642598262106,0.18362657,137.22,137.21,128.72615779]
[1642598263009,26.39835977,137.31,137.21,128.72615779]
[1642598263205,26.39835977,137.31,137.24,10.9269]
[1642598263406,26.39835977,137.31,137.24,13.8389]
[1642598263604,26.39835977,137.31,137.25,0.25]
[1642598264503,26.39835977,137.31,137.26,10.9267]
[1642598265204,26.39835977,137.31,137.27,0.25]
[1642598265608,26.39835977,137.31,137.27,11.1769]
[1642598266131,1.43915977,137.31,137.27,11.1769]
[1642598268035,1.43915977,137.31,137.26,10.9277]
[1642598268237,1.99075977,137.31,137.24,16.53]
[1642598268434,4.04738928,137.31,137.24,16.53]
[1642598268834,2.05662951,137.3,137.24,16.53]
[1642598269034,41.42029019,137.29,137.24,16.53]
[1642598269837,52.35089019,137.29,137.24,16.53]
[1642598270037,0.5515,137.28,137.24,10.53]
[1642598270439,0.5515,137.28,137.22,10.9309]
[1642598270638,52.90239019,137.29,137.22,10.9309]
[1642598271240,54.9590197,137.29,137.22,10.9309]
[1642598271440,54.4075197,137.29,137.22,10.9309]
[1642598272742,52.35089019,137.29,137.23,0.25]
[1642598272941,52.35089019,137.29,137.23,11.1801]
[1642598274146,52.90269019,137.29,137.23,10.9301]
[1642598275347,41.97209019,137.29,137.24,0.25]
[1642598275547,41.97209019,137.29,137.23,10.9301]
[1642598276352,44.0287197,137.29,137.23,10.9301]
[1642598276953,41.97209019,137.29,137.23,10.9301]
[1642598277162,44.0287197,137.29,137.23,10.9301]
[1642598277952,43.4769197,137.29,137.23,10.9301]
[1642598279957,43.4769197,137.29,137.24,0.25]
[1642598280157,41.42029019,137.29,137.25,10.9283]
[1642598281158,3.49578928,137.31,137.25,10.9283]
[1642598282258,48.41918087,137.3,137.24,2.912]
[1642598282461,2.05662951,137.29,137.21,10.53]
[1642598282659,2.60822951,137.28,137.19,33.6419]
[1642598283461,2.30662951,137.27,137.19,33.6419]
[1642598283661,2.30662951,137.27,137.2,0.25]
[1642598283865,1.80662951,137.27,137.2,0.25]
[1642598284364,12.73862951,137.27,137.2,11.1825]
[1642598284991,12.73862951,137.27,137.2,12.52025779]
[1642598286891,1.80662951,137.27,137.2,12.52025779]
[1642598287091,10.9312,137.28,137.2,96.41025779]
[1642598287494,0.5517,137.29,137.2,96.41025779]
[1642598287694,23.5173,137.3,137.2,96.41025779]
[1642598288325,0.5515,137.3,137.23,10.9287]
[1642598288498,1.99055977,137.31,137.23,10.9287]
[1642598288700,1.43915977,137.31,137.24,0.25]
[1642598289203,1.43915977,137.31,137.24,2.13585454]
[1642598289907,12.36835977,137.31,137.24,0.25]
[1642598290307,12.36835977,137.31,137.23,10.9301]
[1642598290606,0.5516,137.3,137.23,10.9301]
[1642598290807,0.5516,137.3,137.23,31.97610801]
[1642598291006,11.4818,137.3,137.23,31.97610801]
[1642598291207,11.7318,137.3,137.23,31.97610801]
[1642598291808,11.7318,137.3,137.23,10.9301]
[1642598292012,11.1802,137.3,137.23,10.9301]
[1642598293007,11.1802,137.3,137.22,10.53]
[1642598293207,11.732,137.3,137.18,28.34465779]
[1642598293407,11.732,137.3,137.18,10.53]
[1642598293408,22.9897,137.29,137.18,10.53]
[1642598293608,10.9332,137.26,137.18,10.53]
[1642598294008,10.9332,137.26,137.18,32.58549856]
[1642598294417,34.8596,137.26,137.19,11.1827]
[1642598294622,34.8596,137.26,137.19,10.9327]
[1642598295418,23.9264,137.26,137.2,1.33775779]
[1642598295614,23.9264,137.26,137.2,12.26975779]
[1642598296048,0.8016,137.3,137.21,4.50175779]
[1642598296240,24.099,137.3,137.21,15.03175779]
[1642598296441,24.349,137.3,137.22,1.33775779]
[1642598296644,24.349,137.3,137.22,11.86775779]
[1642598296841,24.099,137.3,137.23,0.25]
[1642598297043,24.099,137.3,137.25,10.9277]
[1642598297240,1.43915977,137.31,137.25,10.9277]
[1642598298241,12.36835977,137.31,137.25,10.9277]
[1642598298643,0.551,137.3,137.25,10.9277]
[1642598298842,0.551,137.3,137.23,0.25]
[1642598299042,12.91975977,137.31,137.23,0.25]
[1642598299746,36.47915977,137.31,137.24,10.9292]
[1642598299942,36.47915977,137.31,137.22,10.53]
[1642598300142,0.25,137.3,137.22,10.53]
[1642598300342,11.4829,137.29,137.22,10.53]
[1642598300742,10.9311,137.29,137.22,10.53]
[1642598303248,0.25,137.28,137.19,24.3768]
[1642598303447,10.9338,137.26,137.2,0.25]
[1642598303650,0.551,137.25,137.19,2.914]
[1642598303847,0.801,137.25,137.19,2.914]
[1642598304050,45.1935253,137.24,137.19,2.914]
[1642598305148,0.551,137.23,137.19,2.914]
[1642598305348,11.4871,137.23,137.19,2.914]
[1642598306550,11.4871,137.23,137.16,10.9358]
[1642598306551,10.9361,137.23,137.16,10.9358]
[1642598306752,10.9361,137.23,137.17,0.25]
[1642598307750,10.9361,137.23,137.16,0.25]
[1642598309051,10.9361,137.23,137.15,10.53]
[1642598309253,10.9361,137.23,137.16,0.25]
[1642598309451,10.9361,137.23,137.16,11.1858]
[1642598309957,10.9361,137.23,137.16,0.25]
[1642598310156,10.9361,137.23,137.15,10.53]
[1642598310353,11.4877,137.23,137.15,10.53]
[1642598310557,10.9877,137.23,137.15,21.4665]
[1642598311855,10.9877,137.23,137.16,0.25]
[1642598312255,0.25,137.22,137.15,21.4665]
[1642598312455,10.9377,137.2,137.15,10.53]
[1642598312657,10.9377,137.2,137.11,128.98720321]
[1642598312854,10.9377,137.2,137.15,0.25]
[1642598313656,50.60655121,137.19,137.12,0.25]
[1642598313855,50.85655121,137.19,137.12,0.25]
[1642598314058,50.60655121,137.19,137.12,0.25]
[1642598314356,50.60655121,137.19,137.11,10.53]
[1642598314758,50.60655121,137.19,137.11,21.4697]
[1642598314958,73.61,137.18,137.09,2.916]
[1642598315161,10.9423,137.16,137.08,10.53]
[1642598316260,10.9423,137.16,137.09,0.25]